fUST/lending_fUST_20250512
["ID","MTS","AMOUNT","RATE_DAILY","PERIOD"]
[360830457,1747055441088,-162.338077,0.00014873,2]
[360830458,1747055441097,-162.338077,0.00014873,2]
[360830459,1747055441106,-162.338077,0.00014873,2]
[360830460,1747055441116,-162.338077,0.00014873,2]
[360830461,1747055441125,-151.0,0.00014873,2]
[360830462,1747055441135,-151.0,0.00014873,2]
[360830463,1747055441144,-151.0,0.00014873,2]
[360830464,1747055441154,-151.0,0.00014873,2]
[360830465,1747055441163,-151.0,0.00014873,2]
[360830466,1747055441172,-151.0,0.00014873,2]
[360830467,1747055441182,-197.473619,0.00014873,2]
[360830468,1747055441192,-204.177568,0.00014873,2]
[360830469,1747055441204,-1826.878827,0.00014873,2]
[360830470,1747055441216,-1826.878827,0.00014873,2]
[360830471,1747055441226,-1826.878827,0.00014873,2]
[360830472,1747055441235,-1826.878827,0.00014873,2]
[360830473,1747055441245,-1826.878827,0.00014873,2]
[360830474,1747055441254,-1826.878827,0.00014873,2]
[360830475,1747055441264,-1826.878827,0.00014873,2]
[360830476,1747055441274,-894.82532771,0.00014873,2]
[360830477,1747055441288,-809.77192445,0.00014873,2]
[360830478,1747055441300,-122.28157484,0.00014873,2]
[360830479,1747055441309,-1826.878827,0.00014873,2]
[360830480,1747055441319,-1826.878827,0.00014873,2]
[360830481,1747055441329,-516.989565,0.00014873,2]
[360830482,1747055441339,-516.989565,0.00014873,2]
[360830483,1747055441348,-516.989565,0.00014873,2]
[360830484,1747055441357,-516.989565,0.00014873,2]
[360830485,1747055441371,-516.989565,0.00014873,2]
[360830486,1747055441380,-516.989565,0.00014873,2]
[360830487,1747055441390,-516.989565,0.00014873,2]
[360830488,1747055441406,-516.989565,0.00014873,2]
[360830489,1747055441427,-151.0,0.00014874,2]
[360830490,1747055441446,-758.375173,0.00014874,2]
[360830491,1747055441465,-758.375173,0.00014874,2]
[360830492,1747055441486,-22292.34,0.00014897,2]
[360830493,1747055441504,-151.0,0.00014897,2]
[360830494,1747055441522,-151.0,0.00014897,2]
[360830495,1747055441539,-1117.763802,0.00014897,2]
[360830496,1747055441554,-1117.763802,0.00014897,2]
[360830497,1747055441572,-577.190569,0.00014897,2]
[360830498,1747055441590,-577.190569,0.00014897,2]
[360830499,1747055441608,-151.0,0.00014897,2]
[360830500,1747055441622,-151.0,0.00014897,2]
[360830501,1747055441640,-382.854684,0.00014897,2]
[360830502,1747055441659,-382.854684,0.00014897,2]
[360830503,1747055441674,-151.0,0.00014897,2]
[360830504,1747055441691,-151.0,0.00014897,2]
[360830505,1747055441705,-323.685291,0.00014897,2]
[360830506,1747055441720,-323.685291,0.00014897,2]
[360830507,1747055441734,-151.0,0.00014897,2]
[360830508,1747055441749,-151.0,0.00014897,2]
[360830509,1747055441765,-7195.276675,0.00014897,2]
[360830510,1747055441779,-548.994467,0.00014897,2]
[360830511,1747055441794,-7195.276675,0.00014897,2]
[360830512,1747055441808,-548.994467,0.00014897,2]
[360830513,1747055441823,-159.034729,0.00014897,2]
[360830514,1747055441837,-159.034729,0.00014897,2]
[360830515,1747055441851,-151.0,0.00014897,2]
[360830516,1747055441866,-320.481581,0.00014897,2]
[360830517,1747055441880,-320.481581,0.00014897,2]
[360830518,1747055441895,-758.375173,0.00014897,2]
[360830519,1747055441910,-173.344805,0.00014897,2]
[360830520,1747055441925,-758.375173,0.00014897,2]
[360830521,1747055441940,-173.344805,0.00014897,2]
[360830522,1747055441956,-231.564826,0.00014897,2]
[360830523,1747055441971,-231.564826,0.00014897,2]
[360830524,1747055441986,-882.181481,0.00014897,2]
[360830525,1747055442000,-882.181481,0.00014897,2]
[360830526,1747055442014,-494.327927,0.00014897,2]
[360830527,1747055442028,-494.327927,0.00014897,2]
[360830528,1747055442044,-494.327927,0.00014897,2]
[360830529,1747055442058,-494.327927,0.00014897,2]
[360830530,1747055442072,-157.645568,0.00014897,2]
[360830531,1747055442087,-157.645571,0.00014897,2]
[360830532,1747055442101,-349.792442,0.00014897,2]
[360830533,1747055442116,-151.0,0.00014897,2]
[360830534,1747055442130,-151.0,0.00014897,2]
[360830535,1747055442145,-349.792442,0.00014897,2]
[360830536,1747055442162,-151.0,0.00014897,2]
[360830537,1747055442175,-162.338077,0.00014897,2]
[360830538,1747055442195,-162.338075,0.00014897,2]
[360830539,1747055442210,-1826.878827,0.00014897,2]
[360830540,1747055442220,-1826.87882439,0.00014897,2]
[360830541,1747055442229,-516.989565,0.00014897,2]
[360830542,1747055442239,-516.989556,0.00014897,2]
[360830543,1747055442248,-34550.43404943,0.00014898,2]
[360830544,1747055442623,-7248.1,0.00014898,2]
[360830545,1747055442954,-0.00211178,0.00014898,2]
[360830787,1747055446691,-422.748628,0.00013904,2]
[360830800,1747055446804,-59.120187,0.00013904,2]
[360830802,1747055446813,-481.868815,0.00013904,2]
[360830804,1747055446822,-7.45293969,0.000147,2]
[360830806,1747055446834,-474.41587531,0.000147,2]
[360830808,1747055446843,-142.52988481,0.000147,2]
[360830810,1747055446854,-339.33893019,0.000147,2]
[360830813,1747055446864,-481.868815,0.000147,2]
[360830816,1747055446873,-674.34483872,0.00014749,2]
[360830818,1747055446882,-481.868815,0.00014873,2]
[360830820,1747055446891,-481.868815,0.00014873,2]
[360830823,1747055446902,-481.868815,0.00014873,2]
[360830825,1747055446911,-481.868815,0.00014873,2]
[360830828,1747055446920,-481.868815,0.00014897,2]
[360830831,1747055446930,-481.868815,0.00014897,2]
[360830834,1747055446939,-29495.18879045,0.00014898,2]
[360831146,1747055996828,-252.05480483,0.00012424,2]
[360831147,1747056003412,-177.77434013,0.00012424,2]
[360831148,1747056016899,-300.0,0.00012424,2]
[360831149,1747056019065,-27.59574154,0.00012424,2]
[360831150,1747056189104,-169.33353172,0.00011942,2]
[360831151,1747056198419,-165.48684912,0.00011942,2]
[360831152,1747056213390,-200.02633474,0.00011942,2]
[360831153,1747056218180,-427.0,0.00011942,2]
[360831154,1747056228476,-51.18562172,0.00011942,2]
[360831157,1747056287698,-231.01317099,0.00011941,2]
[360831158,1747056291474,-246.59637813,0.00011941,2]
[360831159,1747056304604,-273.98579963,0.00011941,2]
[360831160,1747056318435,-206.21698277,0.0001194,2]
[360831161,1747056333404,-300.0,0.0001194,2]
[360831162,1747056348434,-303.41701588,0.0001194,2]
[360831163,1747056349470,-390.36600135,0.0001194,2]
[360831164,1747056349613,-300.0,0.0001194,2]
[360831165,1747056349637,-9248.40465125,0.00011941,2]
[360831166,1747056353176,290.2293474,0.00011821,2]
[360831167,1747056363791,-205.85782687,0.00011821,2]
[360831168,1747056378955,-51.91282573,0.00011821,2]
[360831172,1747056536515,-202.98257043,0.0001194,2]
[360831174,1747056543514,-239.20560413,0.00011939,2]
[360831184,1747056558451,-229.90412252,0.00011879,2]
[360831186,1747056574110,-297.43885074,0.00011879,2]
[360831192,1747056588962,-178.54493453,0.00011879,2]
[360831194,1747056604612,-70.55058591,0.00011879,2]
[360831195,1747056604635,-299.22165101,0.00011939,2]
[360831201,1747056618466,-0.77834899,0.00011939,2]
[360831202,1747056618493,-152.23255981,0.00011939,2]
[360831225,1747056632668,-147.76744019,0.00011939,2]
[360831227,1747056632678,-300.0,0.00011939,2]
[360831229,1747056632691,-1200.0,0.00011939,2]
[360831231,1747056632700,-300.0,0.00011939,2]
[360831233,1747056632710,-17587.21123567,0.0001194,2]
[360831235,1747056632719,-1659.117843,0.0001255,2]
[360831237,1747056632729,-1000.0,0.00012712,2]
[360831239,1747056632739,-151.0,0.00012935,2]
[360831241,1747056632749,-25621.95844056,0.00012939,2]
[360831244,1747056632761,-3637.44109565,0.00012939,2]
[360831246,1747056632777,-20740.60046379,0.00012939,2]
[360831248,1747056632787,-500.0,0.00012939,2]
[360831250,1747056632796,-500.0,0.00012939,2]
[360831252,1747056632806,-386.33237369,0.00012939,2]
[360831254,1747056632815,-157.96328666,0.00012939,2]
[360831256,1747056632829,-342.03671334,0.00012939,2]
[360831258,1747056632839,-500.0,0.00012939,2]
[360831261,1747056632848,-501.76060013,0.00012939,2]
[360831264,1747056632858,-500.0,0.00012939,2]
[360831267,1747056632867,-270.12347496,0.00012939,2]
[360831270,1747056632876,-491.93942595,0.00012939,2]
[360831273,1747056632885,-500.0,0.00012939,2]
[360831276,1747056632895,-500.0,0.00012939,2]
[360831279,1747056632903,-500.0,0.00012939,2]
[360831282,1747056632913,-500.0,0.00012939,2]
[360831285,1747056632922,-530.93444723,0.00012939,2]
[360831288,1747056632931,-500.0,0.00012939,2]
[360831291,1747056632940,-500.0,0.00012939,2]
[360831294,1747056632949,-500.0,0.00012939,2]
[360831297,1747056632958,-500.0,0.00012939,2]
[360831300,1747056632967,-500.0,0.00012939,2]
[360831303,1747056632976,-500.0,0.00012939,2]
[360831306,1747056632985,-500.0,0.00012939,2]
[360831309,1747056632995,-500.0,0.00012939,2]
[360831312,1747056633004,-484.46980713,0.00012939,2]
[360831315,1747056633013,-500.0,0.00012939,2]
[360831318,1747056633022,-500.0,0.00012939,2]
[360831321,1747056633031,-15861.32735711,0.0001294,2]
[360831324,1747056633041,-500.0,0.00012942,2]
[360831327,1747056633051,-500.0,0.00012942,2]
[360831330,1747056633061,-500.0,0.00012942,2]
[360831333,1747056633070,-500.0,0.00012942,2]
[360831336,1747056633084,-500.0,0.00012942,2]
[360831339,1747056633094,-500.0,0.00012942,2]
[360831342,1747056633103,-500.0,0.00012942,2]
[360831345,1747056633113,-500.0,0.00012942,2]
[360831348,1747056633123,-316.19908606,0.00012942,2]
[360831351,1747056633134,-500.0,0.00012942,2]
[360831354,1747056633143,-565.74071573,0.00012942,2]
[360831357,1747056633154,-24900.0,0.00012943,2]
[360831359,1747056633164,-420.0,0.00013108,2]
[360831361,1747056633174,-420.0,0.00013108,2]
[360831363,1747056633184,-420.0,0.00013108,2]
[360831366,1747056633195,-420.0,0.00013108,2]
[360831369,1747056633205,-1680.0,0.00013133,2]
[360831372,1747056633214,-500.0,0.00013135,2]
[360831375,1747056633225,-33109.58286132,0.000135,2]
[360831378,1747056633235,-1000.0900081,0.00013698,2]
[360831381,1747056633246,-500.0,0.00013699,2]
[360831384,1747056633256,-500.0,0.00013699,2]
[360831387,1747056633266,-500.0,0.00013699,2]
[360831390,1747056633276,-500.0,0.00013699,2]
[360831393,1747056633287,-500.0,0.00013699,2]
[360831395,1747056633297,-500.0,0.00013699,2]
[360831406,1747056633307,-500.0,0.00013699,2]
[360831411,1747056633439,-500.0,0.00013699,2]
[360831413,1747056633449,-500.0,0.00013699,2]
[360831415,1747056633459,-500.0,0.00013699,2]
[360831417,1747056633469,-500.0,0.00013699,2]
[360831419,1747056633478,-500.0,0.00013699,2]
[360831421,1747056633488,-500.0,0.00013699,2]
[360831423,1747056633498,-567.47835574,0.00013699,2]
[360831425,1747056633509,-500.0,0.00013699,2]
[360831427,1747056633519,-500.0,0.00013699,2]
[360831429,1747056633529,-500.0,0.00013699,2]
[360831431,1747056633539,-500.0,0.00013699,2]
[360831433,1747056633548,-500.0,0.00013699,2]
[360831435,1747056633558,-500.0,0.00013699,2]
[360831437,1747056633568,-500.0,0.00013699,2]
[360831439,1747056633580,-500.0,0.00013699,2]
[360831441,1747056633590,-500.0,0.00013699,2]
[360831443,1747056633600,-500.0,0.00013699,2]
[360831445,1747056633609,-500.0,0.00013699,2]
[360831447,1747056633619,-500.0,0.00013699,2]
[360831449,1747056633630,-500.0,0.00013699,2]
[360831451,1747056633639,-500.0,0.00013699,2]
[360831453,1747056633650,-500.0,0.00013699,2]
[360831455,1747056633659,-500.0,0.00013699,2]
[360831457,1747056633670,-500.0,0.00013699,2]
[360831459,1747056633684,-431.7169714,0.00013699,2]
[360831461,1747056633695,-500.0,0.00013699,2]
[360831463,1747056633706,-500.0,0.00013699,2]
[360831465,1747056633716,-500.0,0.00013699,2]
[360831467,1747056633725,-500.0,0.00013699,2]
[360831469,1747056633735,-244.012279,0.00013904,2]
[360831471,1747056633745,-244.012279,0.00013904,2]
[360831473,1747056633756,-151.378151,0.00013904,2]
[360831475,1747056633766,-25017.9419633,0.00014,7]
[360831477,1747056633776,-212.17074216,0.00014,7]
[360831479,1747056633786,-359.8946661,0.00014041,2]
[360831481,1747056633795,-153.0,0.00014082,2]
[360831483,1747056633805,-153.0,0.00014082,2]
[360831485,1747056633814,-153.0,0.00014082,2]
[360831487,1747056633823,-197.8643726,0.00014125,2]
[360831489,1747056633837,-9345.53291702,0.00014132,2]
[360831491,1747056633847,-207.4,0.00014152,2]
[360831493,1747056633856,-319.9938173,0.00014178,2]
[360831495,1747056633866,-4020.65405468,0.00014291,2]
[360831498,1747056633878,-247.6,0.00014297,2]
[360831500,1747056633888,-247.6,0.00014297,2]
[360831502,1747056633898,-247.6,0.00014297,2]
[360831504,1747056633910,-247.6,0.00014297,2]
[360831506,1747056633920,-247.6,0.00014297,2]
[360831508,1747056633930,-247.6,0.00014297,2]
[360831510,1747056633939,-247.6,0.00014297,2]
[360831512,1747056633950,-247.6,0.00014297,2]
[360831514,1747056633960,-247.5,0.00014297,2]
[360831516,1747056633970,-477.17375236,0.00014297,2]
[360831518,1747056633980,-151.0,0.000143,2]
[360831520,1747056633989,-151.0,0.000143,2]
[360831522,1747056633999,-151.0,0.000143,2]
[360831524,1747056634008,-15984.0769764,0.000143,2]
[360831526,1747056634018,-151.63523759,0.00014304,2]
[360831528,1747056634028,-587.0,0.0001439,2]
[360831530,1747056634037,-436.0,0.0001439,2]
[360831532,1747056634047,-587.0,0.0001439,2]
[360831534,1747056634057,-362.9868952,0.00014404,2]
[360831536,1747056634067,-716.1277613,0.00014404,2]
[360831538,1747056634079,-362.9868952,0.00014404,2]
[360831540,1747056634088,-362.9402041,0.00014404,2]
[360831542,1747056634099,-4020.65405464,0.00014418,2]
[360831544,1747056634109,-2351.0,0.00014447,2]
[360831546,1747056634119,-153.0,0.00014452,2]
[360831548,1747056634130,-3189.6,0.00014522,2]
[360831550,1747056634140,-4020.65405464,0.00014545,2]
[360831552,1747056634150,-236.623592,0.00014598,2]
[360831554,1747056634160,-236.623592,0.00014598,2]
[360831556,1747056634171,-244.012279,0.00014598,2]
[360831558,1747056634181,-244.012279,0.00014598,2]
[360831560,1747056634192,-343.984709,0.00014598,2]
[360831562,1747056634202,-343.984709,0.00014598,2]
[360831564,1747056634212,-2044.0,0.000146,2]
[360831566,1747056634222,-2044.0,0.000146,2]
[360831568,1747056634233,-2044.0,0.000146,2]
[360831570,1747056634243,-2044.0,0.000146,2]
[360831572,1747056634253,-2044.0,0.000146,2]
[360831574,1747056634263,-2044.0,0.000146,2]
[360831576,1747056634273,-2044.0,0.000146,2]
[360831578,1747056634283,-2044.0,0.000146,2]
[360831580,1747056634294,-2044.0,0.000146,2]
[360831582,1747056634304,-2044.0,0.000146,2]
[360831584,1747056634315,-228.984425,0.000146,2]
[360831586,1747056634329,-461.752455,0.000146,2]
[360831588,1747056634341,-461.752455,0.000146,2]
[360831590,1747056634351,-151.0,0.000146,2]
[360831592,1747056634362,-216.840966,0.0001465,2]
[360831594,1747056634373,-216.840966,0.0001465,2]
[360831596,1747056634384,-151.0,0.0001465,2]
[360831598,1747056634395,-151.0,0.0001465,2]
[360831600,1747056634405,-198.585,0.0001465,2]
[360831602,1747056634416,-4020.65405464,0.00014671,2]
[360831604,1747056634426,-160.0,0.00014699,2]
[360831606,1747056634435,-236.623592,0.000147,2]
[360831608,1747056634444,-236.623592,0.000147,2]
[360831610,1747056634455,-236.623592,0.000147,2]
[360831612,1747056634466,-236.623592,0.000147,2]
[360831614,1747056634476,-244.012279,0.000147,2]
[360831616,1747056634486,-244.012279,0.000147,2]
[360831618,1747056634496,-244.012279,0.000147,2]
[360831620,1747056634507,-244.012279,0.000147,2]
[360831621,1747056634519,-244.012279,0.000147,2]
[360831623,1747056634529,-244.012279,0.000147,2]
[360831625,1747056634539,-343.984709,0.000147,2]
[360831627,1747056634550,-343.984709,0.000147,2]
[360831629,1747056634560,-343.984709,0.000147,2]
[360831631,1747056634570,-343.984709,0.000147,2]
[360831634,1747056634584,-151.0,0.000147,2]
[360831636,1747056634593,-151.0,0.000147,2]
[360831637,1747056634604,-151.0,0.000147,2]
[360831639,1747056634613,-267.998278,0.000147,2]
[360831641,1747056634623,-194.0,0.000147,2]
[360831643,1747056634633,-267.998278,0.000147,2]
[360831645,1747056634643,-151.0,0.000147,2]
[360831647,1747056634653,-194.0,0.000147,2]
[360831649,1747056634664,-195.93165117,0.000147,2]
[360831651,1747056634675,-894.211041,0.000147,2]
[360831654,1747056634688,-894.211041,0.000147,2]
[360831655,1747056634698,-151.0,0.000147,2]
[360831658,1747056634709,-441.090741,0.000147,2]
[360831659,1747056634721,-206.282681,0.000147,2]
[360831662,1747056634732,-441.090741,0.000147,2]
[360831664,1747056634743,-206.282681,0.000147,2]
[360831666,1747056634754,-303.350069,0.000147,2]
[360831668,1747056634765,-303.350069,0.000147,2]
[360831670,1747056634776,-151.0,0.000147,2]
[360831672,1747056634786,-151.0,0.000147,2]
[360831674,1747056634796,-151.0,0.000147,2]
[360831675,1747056634806,-151.0,0.000147,2]
[360831677,1747056634815,-151.0,0.000147,2]
[360831680,1747056634829,-151.0,0.000147,2]
[360831682,1747056634841,-461.752455,0.000147,2]
[360831684,1747056634851,-461.752455,0.000147,2]
[360831686,1747056634862,-285.626415,0.000147,2]
[360831687,1747056634872,-820.99721829,0.00014721,2]
[360831689,1747056634881,-641.88579729,0.00014786,2]
[360831691,1747056634891,-441.090741,0.00014798,2]
[360831693,1747056634900,-206.282681,0.00014798,2]
[360831695,1747056634910,-441.090741,0.00014798,2]
[360831697,1747056634919,-206.282681,0.00014798,2]
[360831699,1747056634929,-303.350069,0.00014798,2]
[360831701,1747056634939,-303.350069,0.00014798,2]
[360831703,1747056634948,-151.0,0.00014798,2]
[360831705,1747056634958,-151.0,0.00014798,2]
[360831707,1747056634967,-5815.79784472,0.00014798,2]
[360831709,1747056634976,-216.840966,0.00014798,2]
[360831711,1747056634985,-216.840966,0.00014798,2]
[360831713,1747056634995,-4020.65405464,0.00014798,2]
[360831715,1747056635004,-151.0,0.00014798,2]
[360831717,1747056635013,-151.0,0.00014798,2]
[360831719,1747056635023,-198.585,0.00014798,2]
[360831721,1747056635032,-427.16,0.000148,2]
[360831723,1747056635042,-194.0,0.000148,2]
[360831725,1747056635051,-228.966056,0.00014823,2]
[360831727,1747056635060,-2470.0427349,0.00014823,2]
[360831729,1747056635069,-500.61112867,0.00014873,2]
[360831731,1747056635082,-500.0,0.00014873,2]
[360831733,1747056635091,-500.0,0.00014873,2]
[360831735,1747056635101,-500.0,0.00014873,2]
[360831737,1747056635110,-500.0,0.00014873,2]
[360831740,1747056635120,-500.0,0.00014873,2]
[360831742,1747056635129,-500.0,0.00014873,2]
[360831744,1747056635138,-500.0,0.00014873,2]
[360831746,1747056635148,-500.0,0.00014873,2]
[360831747,1747056635158,-500.0,0.00014873,2]
[360831750,1747056635167,-500.7228213,0.00014873,2]
[360831751,1747056635177,-500.0,0.00014873,2]
[360831753,1747056635186,-500.0,0.00014873,2]
[360831755,1747056635196,-500.0,0.00014873,2]
[360831757,1747056635205,-500.0,0.00014873,2]
[360831759,1747056635215,-501.49854421,0.00014873,2]
[360831761,1747056635224,-501.53825745,0.00014873,2]
[360831763,1747056635233,-500.0,0.00014873,2]
[360831765,1747056635243,-500.10194275,0.00014873,2]
[360831767,1747056635252,-500.0,0.00014873,2]
[360831769,1747056635262,-500.0,0.00014873,2]
[360831771,1747056635274,-500.0,0.00014873,2]
[360831773,1747056635284,-500.0,0.00014873,2]
[360831775,1747056635294,-500.0,0.00014873,2]
[360831778,1747056635305,-500.0,0.00014873,2]
[360831780,1747056635314,-500.0,0.00014873,2]
[360831782,1747056635323,-500.0,0.00014873,2]
[360831784,1747056635337,-500.0,0.00014873,2]
[360831785,1747056635346,-500.0,0.00014873,2]
[360831788,1747056635356,-236.623592,0.00014873,2]
[360831789,1747056635365,-236.623592,0.00014873,2]
[360831791,1747056635374,-236.623592,0.00014873,2]
[360831794,1747056635384,-236.623592,0.00014873,2]
[360831796,1747056635393,-236.623592,0.00014873,2]
[360831798,1747056635403,-236.623592,0.00014873,2]
[360831800,1747056635412,-236.623592,0.00014873,2]
[360831801,1747056635421,-236.623592,0.00014873,2]
[360831814,1747056635528,-244.012279,0.00014873,2]
[360831816,1747056635538,-244.012279,0.00014873,2]
[360831818,1747056635548,-244.012279,0.00014873,2]
[360831820,1747056635558,-244.012279,0.00014873,2]
[360831823,1747056635569,-244.012279,0.00014873,2]
[360831825,1747056635580,-244.012279,0.00014873,2]
[360831827,1747056635590,-244.012279,0.00014873,2]
[360831829,1747056635599,-244.012279,0.00014873,2]
[360831831,1747056635608,-244.012279,0.00014873,2]
[360831833,1747056635617,-244.012287,0.00014873,2]
[360831835,1747056635627,-343.984709,0.00014873,2]
[360831837,1747056635637,-343.984709,0.00014873,2]
[360831839,1747056635646,-343.984709,0.00014873,2]
[360831841,1747056635656,-343.984709,0.00014873,2]
[360831843,1747056635666,-343.984709,0.00014873,2]
[360831845,1747056635679,-343.984709,0.00014873,2]
[360831847,1747056635689,-343.984709,0.00014873,2]
[360831849,1747056635699,-343.984709,0.00014873,2]
[360831851,1747056635708,-151.0,0.00014873,2]
[360831853,1747056635719,-151.0,0.00014873,2]
[360831855,1747056635729,-267.998278,0.00014873,2]
[360831857,1747056635739,-267.998278,0.00014873,2]
[360831859,1747056635749,-151.0,0.00014873,2]
[360831861,1747056635758,-151.0,0.00014873,2]
[360831863,1747056635770,-151.0,0.00014873,2]
[360831865,1747056635780,-151.0,0.00014873,2]
[360831867,1747056635790,-151.0,0.00014873,2]
[360831869,1747056635800,-894.211041,0.00014873,2]
[360831871,1747056635810,-381.660942,0.00014873,2]
[360831873,1747056635819,-894.211041,0.00014873,2]
[360831875,1747056635830,-381.660942,0.00014873,2]
[360831877,1747056635840,-154.810056,0.00014873,2]
[360831879,1747056635849,-151.0,0.00014873,2]
[360831881,1747056635859,-151.0,0.00014873,2]
[360831883,1747056635868,-223.448042,0.00014873,2]
[360831885,1747056635878,-192.288949,0.00014873,2]
[360831887,1747056635887,-192.288949,0.00014873,2]
[360831889,1747056635896,-4317.166005,0.00014873,2]
[360831891,1747056635906,-190.974437,0.00014873,2]
[360831893,1747056635916,-190.974437,0.00014873,2]
[360831895,1747056635925,-151.0,0.00014873,2]
[360831897,1747056635934,-157.307306,0.00014873,2]
[360831899,1747056635944,-157.307306,0.00014873,2]
[360831901,1747056635953,-441.090741,0.00014873,2]
[360831903,1747056635963,-206.282681,0.00014873,2]
[360831905,1747056635972,-441.090741,0.00014873,2]
[360831907,1747056635981,-206.282681,0.00014873,2]
[360831909,1747056635990,-303.350069,0.00014873,2]
[360831911,1747056636000,-303.350069,0.00014873,2]
[360831913,1747056636009,-151.0,0.00014873,2]
[360831915,1747056636018,-182.446221,0.00014873,2]
[360831917,1747056636027,-151.0,0.00014873,2]
[360831919,1747056636036,-182.446221,0.00014873,2]
[360831921,1747056636046,-151.0,0.00014873,2]
[360831923,1747056636055,-151.0,0.00014873,2]
[360831925,1747056636064,-151.0,0.00014873,2]
[360831927,1747056636073,-216.840966,0.00014873,2]
[360831929,1747056636086,-216.840966,0.00014873,2]
[360831931,1747056636096,-461.752455,0.00014873,2]
[360831933,1747056636105,-461.752455,0.00014873,2]
[360831935,1747056636114,-151.0,0.00014873,2]
[360831937,1747056636123,-151.0,0.00014873,2]
[360831939,1747056636132,-236.623592,0.00014897,2]
[360831941,1747056636142,-236.623592,0.00014897,2]
[360831943,1747056636151,-236.623592,0.00014897,2]
[360831945,1747056636161,-236.623592,0.00014897,2]
[360831947,1747056636170,-343.984709,0.00014897,2]
[360831949,1747056636180,-343.984709,0.00014897,2]
[360831951,1747056636189,-343.984709,0.00014897,2]
[360831953,1747056636199,-343.984709,0.00014897,2]
[360831955,1747056636209,-151.0,0.00014897,2]
[360831956,1747056636218,-151.0,0.00014897,2]
[360831957,1747056636227,-151.0,0.00014897,2]
[360831958,1747056636237,-226.579704,0.00014897,2]
[360831959,1747056636247,-226.579704,0.00014897,2]
[360831960,1747056636256,-151.0,0.00014897,2]
[360831961,1747056636265,-157.19623,0.00014897,2]
[360831962,1747056636274,-151.0,0.00014897,2]
[360831963,1747056636283,-461.752455,0.00014897,2]
[360831964,1747056636292,-461.752455,0.00014897,2]
[360831965,1747056636302,-104258.89528952,0.00014898,2]
[360832219,1747056638799,-425.602251,0.00013699,2]
[360832221,1747056638809,-394.49729941,0.0001465,2]
[360832393,1747056641061,-330.154,0.0001465,2]
[360832417,1747056641281,-0.00300139,0.0001465,2]
[360832771,1747056645546,-71.7548482,0.0001465,2]
[360832773,1747056645556,-198.585,0.0001465,2]
[360832774,1747056645565,-796.409149,0.0001465,2]
[360832777,1747056645575,-460.12065673,0.00014798,2]
[360832868,1747056647179,-336.28849227,0.00014798,2]
[360832869,1747056647189,-198.585,0.00014798,2]
[360832870,1747056647199,-796.409149,0.00014798,2]
[360832871,1747056647208,-198.585,0.00014873,2]
[360832872,1747056647218,-796.409149,0.00014873,2]
[360832873,1747056647228,-198.585,0.00014873,2]
[360832874,1747056647237,-796.409149,0.00014873,2]
[360832875,1747056647246,-4520.77335813,0.00014898,2]
[360832999,1747056696597,-233.28638386,0.00012942,2]
[360833003,1747056735705,-10.86473355,0.00012942,2]
[360833004,1747056735729,-300.0,0.00013966,2]
[360833005,1747056735751,-18963.13526645,0.00013967,2]
[360833006,1747056904148,-201.01492869,8.182e-05,2]
[360833007,1747056918502,-211.99249354,8.182e-05,2]
[360833008,1747056933446,-168.19200212,8.182e-05,2]